bitfinex/quotes_SOLUSD_20220307
["timestamp","ask_amount","ask_price","bid_price","bid_amount"]
[1646660085709,0.25,84.696,84.621,0.25]
[1646660086811,0.25,84.696,84.604,0.25]
[1646660087115,0.25,84.696,84.62,17.7274]
[1646660087311,0.25,84.696,84.621,6.25]
[1646660087511,0.25,84.696,84.622,118.6]
[1646660087713,0.25,84.696,84.623,6.25]
[1646660088318,0.25,84.696,84.63,17.7253]
[1646660088519,0.25,84.696,84.631,0.25]
[1646660089716,0.25,84.696,84.613,6.0]
[1646660089717,0.25,84.696,84.616,0.25]
[1646660089917,0.25,84.696,84.613,6.0]
[1646660089918,0.25,84.696,84.614,0.25]
[1646660090217,0.25,84.696,84.614,118.85]
[1646660090418,0.25,84.696,84.616,118.6]
[1646660090618,0.25,84.696,84.617,6.25]
[1646660090819,0.25,84.696,84.614,0.25]
[1646660090820,0.25,84.696,84.618,6.25]
[1646660091022,17.7284,84.69,84.614,0.25]
[1646660091218,6.25,84.689,84.614,0.25]
[1646660091917,0.25,84.689,84.614,0.25]
[1646660092118,0.25,84.689,84.621,118.6]
[1646660092418,0.25,84.695,84.622,6.25]
[1646660092819,1.60406711,84.683,84.622,0.25]
[1646660093119,1.60406711,84.681,84.622,0.25]
[1646660093321,6.25,84.68,84.614,0.25]
[1646660093719,0.25,84.68,84.614,0.25]
[1646660093920,0.25,84.68,84.63,17.7248]
[1646660094122,0.25,84.68,84.631,0.25]
[1646660094323,0.25,84.68,84.614,0.25]
[1646660094922,0.25,84.68,84.614,118.85]
[1646660094923,1.60406711,84.677,84.614,118.85]
[1646660095222,0.25,84.676,84.616,118.6]
[1646660095422,0.25,84.676,84.618,118.6]
[1646660095624,0.25,84.676,84.62,118.6]
[1646660095823,0.25,84.676,84.63,17.7255]
[1646660096029,0.25,84.676,84.631,0.25]
[1646660096224,1.60406711,84.678,84.631,132.83]
[1646660096424,1.60406711,84.689,84.632,0.11063277]
[1646660096626,1.60406711,84.696,84.632,0.11063277]
[1646660096823,1.60406711,84.702,84.648,118.6]
[1646660097025,1.60406711,84.708,84.65,118.6]
[1646660097224,1.60406711,84.713,84.652,118.6]
[1646660097424,1.60406711,84.713,84.654,118.6]
[1646660097625,1.60406711,84.714,84.656,118.6]
[1646660097825,1.60406711,84.714,84.658,118.6]
[1646660098026,1.60406711,84.717,84.66,118.6]
[1646660098226,1.85406711,84.716,84.662,118.6]
[1646660098431,0.25,84.716,84.663,6.25]
[1646660098632,1.85406711,84.717,84.665,0.14801312]
[1646660098828,1.60406711,84.717,84.667,0.18470415]
[1646660099028,1.60406711,84.719,84.665,6.25]
[1646660099228,1.60406711,84.719,84.665,0.25]
[1646660099431,1.60406711,84.718,84.67,17.7175]
[1646660099630,37.7161859,84.719,84.671,6.25]
[1646660100032,37.7161859,84.719,84.671,0.25]
[1646660100234,0.25,84.718,84.671,0.25]
[1646660100431,6.25,84.718,84.654,100.0]
[1646660100633,6.25,84.718,84.63,16.99]
[1646660100834,1.60406711,84.709,84.62,16.99]
[1646660101033,7.85406711,84.708,84.622,118.6]
[1646660101533,40.84488322,84.699,84.64,17.7248]
[1646660101739,0.25,84.698,84.65,0.25]
[1646660102034,0.25,84.698,84.642,0.25]
[1646660102636,0.25,84.698,84.65,17.723]
[1646660102837,0.25,84.698,84.651,0.25]
[1646660103736,0.25,84.698,84.643,0.25]
[1646660104338,6.25,84.698,84.626,6.0]
[1646660104537,6.25,84.698,84.625,23.8133]
[1646660104738,1.60406711,84.694,84.626,6.0]
[1646660104938,0.25,84.693,84.63,17.7268]
[1646660105340,1.60406711,84.698,84.632,118.6]
[1646660105639,1.60406711,84.698,84.634,118.6]
[1646660105839,1.60406711,84.712,84.651,118.6]
[1646660106041,6.0,84.711,84.652,106.25]
[1646660106246,6.0,84.722,84.652,106.25]
[1646660106450,35.93383507,84.714,84.652,106.25]
[1646660106643,6.0,84.713,84.652,106.25]
[1646660106844,6.0,84.713,84.66,17.7163]
[1646660107042,6.0,84.713,84.661,6.25]
[1646660107251,6.0,84.713,84.662,6.25]
[1646660107443,1.60406711,84.728,84.663,118.6]
[1646660107643,6.0,84.727,84.668,118.6]
[1646660107842,6.0,84.73,84.669,6.25]
[1646660108343,6.0,84.73,84.67,17.7177]
[1646660108544,6.0,84.73,84.671,6.25]
[1646660108743,6.0,84.731,84.672,0.25]
[1646660108944,7.60406711,84.731,84.672,0.25]
[1646660109545,1.60406711,84.73,84.672,0.25]
[1646660109746,6.0,84.729,84.672,0.25]
[1646660109947,1.60406711,84.731,84.68,17.7168]
[1646660110147,1.60406711,84.731,84.681,0.25]
[1646660110347,1.60406711,84.744,84.682,0.24263133]
[1646660110546,1.60406711,84.762,84.691,118.6]
[1646660110745,3.20292809,84.786,84.69,16.99]
[1646660110746,1.60406711,84.774,84.693,118.6]
[1646660110950,1.60406711,84.784,84.711,118.6]
[1646660111247,1.60406711,84.784,84.721,118.6]
[1646660111448,1.60406711,84.789,84.737,100.0]
[1646660111649,16.99,84.87,84.737,100.0]
[1646660111650,1.60406711,84.817,84.738,6.25]
[1646660111847,1.60406711,84.823,84.74,16.99]
[1646660112046,1.60406711,84.834,84.741,147.5598]
[1646660112349,46.2416,84.879,84.76,17.6955]
[1646660112350,36.68241343,84.843,84.76,17.6955]
[1646660112547,36.68241343,84.843,84.761,124.85]
[1646660113148,36.68241343,84.843,84.78,17.6901]
[1646660113348,36.68241343,84.843,84.781,6.25]
[1646660113548,36.68241343,84.843,84.781,12.68]
[1646660113750,1.60406711,84.853,84.781,12.68]
[1646660113949,22.5003,84.867,84.781,12.68]
[1646660114158,22.5003,84.867,84.782,118.6]
[1646660114353,17.6914,84.86,84.79,17.691]
[1646660114549,17.6914,84.86,84.791,0.25]
[1646660114750,17.6914,84.86,84.783,0.25]
[1646660114751,50.57466807,84.859,84.783,0.25]
[1646660114951,44.57466807,84.859,84.783,0.25]
[1646660115650,44.57466807,84.859,84.781,0.25]
[1646660115855,44.57466807,84.859,84.74,102.743234]
[1646660115856,118.6,84.858,84.773,0.25]
[1646660116055,0.25,84.857,84.751,6.0]
[1646660116253,1.60406711,84.854,84.744,6.0]
[1646660116554,17.6949,84.85,84.745,118.6]
[1646660116754,6.25,84.849,84.751,118.6]
[1646660116951,6.25,84.849,84.753,118.6]
[1646660117153,5.75,84.849,84.755,118.6]
[1646660117351,5.75,84.849,84.754,6.0]
[1646660117352,12.31974425,84.866,84.757,118.6]
[1646660117552,22.5003,84.867,84.756,6.25]
[1646660117553,44.07466807,84.859,84.771,118.6]
[1646660117752,44.07466807,84.859,84.781,118.6]
[1646660117954,44.07466807,84.859,84.791,118.6]
[1646660118152,44.07466807,84.859,84.793,118.6]
[1646660118351,22.5003,84.867,84.795,118.6]
[1646660118552,1.60406711,84.891,84.797,118.6]
[1646660118752,0.91,84.951,84.794,6.25]
[1646660118753,1.60406711,84.9,84.801,118.6]
[1646660118954,6.15655307,84.902,84.803,118.6]
[1646660119152,1.60406711,84.911,84.805,118.6]
[1646660119359,1.60406711,84.917,84.821,118.6]
[1646660119559,38.20158781,84.921,84.823,118.6]
[1646660119755,38.20158781,84.921,84.821,6.04]
[1646660119756,38.20158781,84.921,84.83,17.6773]
[1646660119954,38.20158781,84.921,84.831,6.25]
[1646660120357,16.99,84.95,84.832,100.0]
[1646660120558,1.60406711,84.965,84.834,118.6]
[1646660120757,3.20292809,84.989,84.831,13.73]
[1646660120758,1.60406711,84.995,84.84,17.6754]
[1646660120958,1.60406711,85.003,84.841,124.85]
[1646660121156,1.60406711,85.003,84.871,118.6]
[1646660121357,36.98783661,85.008,84.881,118.6]
[1646660121555,36.98783661,85.008,84.88,16.99]
[1646660121556,36.98783661,85.008,84.884,0.38750502]
[1646660121757,36.98783661,85.008,84.885,118.6]
[1646660121963,36.98783661,85.008,84.884,6.63750502]
[1646660121964,36.98783661,85.008,84.9,16.99]
[1646660122158,6.0,85.007,84.901,6.25]
[1646660122372,0.25,85.006,84.902,6.25]
[1646660122557,2.83613526,85.006,84.902,6.25]
[1646660122957,15.13653883,85.016,84.903,0.38750502]
[1646660123157,15.13653883,85.016,84.903,6.01750502]
[1646660123357,2.83613526,85.016,84.905,0.38750502]
[1646660123557,39.24690159,85.015,84.92,16.99]
[1646660123757,39.24690159,85.015,84.921,6.25]
[1646660123958,6.0,85.014,84.921,6.25]
[1646660124159,21.1333743,85.014,84.921,6.0]
[1646660124358,2.83613526,85.013,84.904,0.38750502]
[1646660124562,6.0,85.012,84.902,0.38750502]
[1646660124758,16.99,85.01,84.902,0.38750502]
[1646660124959,6.0,85.009,84.902,0.38750502]
[1646660125159,114.1,84.994,84.902,0.38750502]
[1646660125358,114.1,84.994,84.882,118.6]
[1646660125359,44.63516502,84.992,84.882,118.6]
[1646660125559,16.99,84.99,84.882,118.6]
[1646660125759,39.49633105,84.979,84.881,22.7612]
[1646660125959,6.25,84.978,84.882,0.25]
[1646660126158,6.25,84.978,84.842,48.4452]
[1646660126159,6.25,84.978,84.85,16.99]
[1646660126359,14.98072504,84.977,84.851,6.0]
[1646660126562,6.25,84.976,84.851,6.0]
[1646660126764,9.08613526,84.976,84.851,6.0]
[1646660126959,35.53074512,84.976,84.851,6.0]
[1646660127161,29.28074512,84.975,84.851,6.0]
[1646660127360,6.0,84.974,84.852,118.6]
[1646660127559,6.0,84.974,84.854,118.6]
[1646660127760,24.6872,84.988,84.861,118.6]
[1646660128063,74.09229062,85.035,84.875,118.6]
[1646660128259,5.1824363,85.035,84.931,189.76]
[1646660128459,1.60406711,85.13,84.961,118.6]
[1646660128662,4.62398,85.12,84.971,118.6]
[1646660128859,4.62398,85.12,85.001,118.6]
[1646660128860,42.17299385,85.119,85.001,118.6]
[1646660129061,4.62398,85.117,85.01,16.99]
[1646660129360,4.62398,85.117,85.011,6.0]
[1646660129563,4.62398,85.117,84.962,71.9823]
[1646660129564,4.2826401,85.116,84.97,16.99]
[1646660129764,4.62398,85.104,84.971,6.25]
[1646660130061,34.6372,85.1,84.971,6.79626893]
[1646660130261,10.62398,85.099,84.971,6.79626893]
[1646660130463,10.62398,85.099,84.972,118.6]
[1646660130661,2.83613526,85.098,84.974,118.6]
[1646660130862,6.0,85.097,84.976,118.6]
[1646660131160,6.0,85.097,84.98,16.99]
[1646660131161,17.6499,85.09,84.98,16.99]
[1646660131363,44.16843305,85.088,84.981,6.25]
[1646660131562,4.31227491,85.086,84.981,6.25]
[1646660131761,6.0,85.085,84.981,0.25]
[1646660131962,8.83613526,85.085,84.981,0.25]
[1646660132364,6.0,85.085,84.981,0.25]
[1646660132562,0.25,85.084,84.976,0.25]
[1646660132762,2.83613526,85.084,84.971,6.25]
[1646660132962,9.08613526,85.083,84.971,0.25]
[1646660133163,16.99,85.08,84.963,0.25]
[1646660133363,17.6569,85.05,84.963,0.25]
[1646660133587,42.87658559,85.048,84.857,5.18572714]
[1646660133762,6.25,85.047,84.94,16.99]
[1646660133963,6.25,85.047,84.93,16.99]
[1646660134362,4.24470353,85.045,84.93,16.99]
[1646660134565,40.02061151,85.029,84.93,16.99]
[1646660134763,6.25,85.028,84.93,16.99]
[1646660135163,6.25,85.028,84.913,0.54626893]
[1646660135567,38.48054279,85.009,84.913,0.54626893]
[1646660135766,0.25,85.008,84.913,0.54626893]
[1646660135966,0.25,85.008,84.914,150.6510486]
[1646660136165,0.25,85.008,84.916,118.6]
[1646660136465,0.25,85.008,84.934,100.0]
[1646660136666,0.25,85.008,84.935,124.85]
[1646660136866,0.25,85.054,84.951,118.6]
[1646660137066,0.25,85.054,84.952,6.25]
[1646660137469,47.88673413,85.055,84.953,0.54626893]
[1646660137668,17.6579,85.05,84.953,0.54626893]
[1646660137966,0.25,85.049,84.953,0.54626893]
[1646660138366,0.25,85.049,84.952,0.25]
[1646660139067,0.25,85.052,84.952,0.25]
[1646660139267,0.25,85.052,84.952,8.56]
[1646660139466,0.25,85.052,84.953,6.0]
[1646660139667,0.25,85.053,84.954,0.25]
[1646660140070,0.25,85.053,84.954,118.85]
[1646660140268,0.25,85.053,84.956,118.6]
[1646660140470,0.25,85.053,84.958,118.6]
[1646660140669,6.0,85.054,84.955,6.0]
[1646660140670,6.0,85.054,84.96,135.59]
[1646660140868,47.63673413,85.055,84.962,118.6]
[1646660141091,47.63673413,85.055,84.964,118.6]
[1646660141271,47.63673413,85.055,84.966,118.6]
[1646660141473,47.63673413,85.055,84.981,118.6]
[1646660141673,23.3455,85.086,84.983,118.6]
[1646660141872,23.3455,85.086,84.985,118.6]
[1646660142073,23.3455,85.086,84.987,118.6]
[1646660142276,6.0,85.084,84.991,118.6]
[1646660142473,118.6,85.079,84.992,0.25]
[1646660142678,118.6,85.077,84.988,0.25]
[1646660142875,6.0,85.076,84.988,0.25]
[1646660143074,0.25,85.075,84.988,0.25]
[1646660143474,118.6,85.069,84.972,0.25]
[1646660143675,17.6529,85.07,84.972,0.25]
[1646660143676,118.6,85.067,84.972,0.25]
[1646660143875,118.6,85.065,84.954,6.0]
[1646660144075,6.25,85.064,84.954,6.0]
[1646660144276,0.25,85.063,84.954,6.0]
[1646660144575,17.6548,85.06,84.955,118.6]
[1646660144775,6.0,85.059,84.957,118.6]
[1646660144978,6.0,85.059,84.959,118.6]
[1646660145182,37.62842094,85.068,84.961,118.6]
[1646660145377,37.62842094,85.068,84.96,20.38]
[1646660145378,37.62842094,85.068,84.963,118.6]
[1646660145577,37.62842094,85.068,84.96,20.92626893]
[1646660145578,37.62842094,85.068,84.965,118.6]
[1646660145779,37.62842094,85.068,84.981,118.6]
[1646660145977,37.62842094,85.068,84.983,118.6]
[1646660146178,37.62842094,85.068,84.966,6.25]
[1646660146179,37.62842094,85.068,84.988,118.6]
[1646660146378,37.62842094,85.068,84.989,6.25]
[1646660146580,37.62842094,85.068,84.989,0.25]
[1646660146779,6.0,85.067,84.989,0.25]
[1646660147281,0.25,85.066,84.989,0.25]
[1646660147580,0.25,85.066,84.972,0.25]
[1646660147980,0.25,85.066,84.971,124.6]
[1646660149099,1.85406711,85.066,84.971,124.6]
[1646660149300,1.60406711,85.064,84.972,0.25]
[1646660149502,6.25,85.063,84.972,0.25]
[1646660149700,6.25,85.063,84.973,0.54626893]
[1646660149900,1.60406711,85.06,84.974,118.6]
[1646660150103,0.25,85.059,84.976,118.6]
[1646660150306,0.25,85.059,84.981,118.6]
[1646660150501,0.25,85.059,84.983,118.6]
[1646660150702,0.25,85.059,84.985,118.6]
[1646660150901,0.25,85.059,84.987,118.6]
[1646660151102,0.25,85.059,84.991,118.6]
[1646660151305,1.60406711,85.062,84.992,6.25]
[1646660151306,0.25,85.061,84.992,6.25]
[1646660151603,1.60406711,85.059,84.992,6.0]
[1646660151803,1.60406711,85.059,84.971,118.6]
[1646660151804,1.60406711,85.056,84.971,118.6]
[1646660152002,0.25,85.058,84.971,118.6]
[1646660152003,1.60406711,85.053,84.972,6.25]
[1646660152204,0.25,85.052,84.972,6.25]
[1646660152406,1.85406711,85.052,84.972,0.25]
[1646660153003,1.60406711,85.046,84.972,0.25]
[1646660153205,42.58863067,85.042,84.971,118.6]
[1646660153405,0.25,85.041,84.972,6.25]
[1646660153706,0.25,85.041,84.961,118.6]
[1646660153904,1.60406711,85.039,84.943,0.54626893]
[1646660154204,2.83613526,85.04,84.943,0.54626893]
[1646660154205,1.60406711,85.032,84.943,0.54626893]
[1646660154403,6.25,85.038,84.943,0.54626893]
[1646660154404,0.25,85.031,84.943,0.54626893]
[1646660154804,46.19821948,85.029,84.943,0.54626893]
[1646660155006,17.6623,85.02,84.934,100.0]
[1646660155204,7.85406711,85.019,84.914,25.54596893]
[1646660155407,1.60406711,85.017,84.914,25.54596893]
[1646660155604,42.74583113,85.015,84.914,25.54596893]
[1646660155804,6.25,85.014,84.915,118.6]
[1646660156005,1.60406711,84.998,84.915,118.6]
[1646660156206,37.87307088,84.997,84.915,118.6]
[1646660156507,1.60406711,84.996,84.915,118.6]
[1646660156705,1.60406711,84.994,84.921,118.6]
[1646660156905,0.25,84.993,84.921,118.6]
[1646660157105,0.25,84.995,84.922,0.25]
[1646660157306,1.60406711,85.0,84.923,118.6]
[1646660157510,1.60406711,85.009,84.925,118.6]
[1646660157707,1.60406711,85.009,84.927,118.6]
[1646660157911,1.60406711,85.009,84.941,118.6]
[1646660158109,1.60406711,85.01,84.951,118.6]
[1646660158309,1.60406711,85.014,84.96,14.13]
[1646660158510,1.60406711,85.021,84.961,124.85]
[1646660158710,48.0158,85.079,84.961,124.85]
[1646660158711,1.60406711,85.04,84.962,71.16]
[1646660158912,1.60406711,85.052,84.965,189.76]
[1646660159112,1.60406711,85.047,84.981,118.6]
[1646660159310,1.60406711,85.049,84.983,118.6]
[1646660159513,1.60406711,85.05,84.985,118.6]
[1646660159710,1.60406711,85.047,84.987,118.6]
[1646660159913,1.60406711,85.046,84.991,118.6]
[1646660160113,1.60406711,85.046,84.992,6.25]
[1646660160521,1.60406711,85.038,84.993,118.6]
[1646660160712,1.60406711,85.037,84.995,118.6]
[1646660160913,1.60406711,85.044,84.997,118.6]
[1646660161114,1.60406711,85.044,84.999,118.6]
[1646660161314,1.60406711,85.047,85.001,118.6]
[1646660161515,1.60406711,85.048,85.003,118.6]
[1646660161717,1.60406711,85.047,85.005,118.6]
[1646660161914,1.60406711,85.048,85.007,118.6]
[1646660162116,1.60406711,85.048,85.009,118.6]
[1646660162314,1.60406711,85.048,85.011,118.6]
[1646660162515,1.60406711,85.048,85.012,6.0]
[1646660162714,1.60406711,85.046,85.012,6.0]
[1646660162915,1.60406711,85.047,85.012,6.0]
[1646660163217,1.60406711,85.047,84.991,6.03]
[1646660163414,1.60406711,85.044,84.991,6.03]
[1646660163815,1.60406711,85.044,84.992,118.85]
[1646660164014,1.60406711,85.044,84.994,118.6]
[1646660164215,1.60406711,85.044,84.996,118.6]
[1646660164416,1.60406711,85.042,84.998,118.6]
[1646660164616,1.60406711,85.042,84.999,6.0]
[1646660164816,1.60406711,85.041,84.996,118.6]
[1646660165015,1.60406711,85.041,84.995,6.0]
[1646660165016,1.60406711,85.039,84.998,118.6]
[1646660165215,1.60406711,85.041,85.0,118.6]
[1646660165415,1.60406711,85.041,85.001,6.0]
[1646660165615,1.60406711,85.041,85.002,0.25]
[1646660165818,1.60406711,85.041,84.999,6.0]
[1646660165819,1.60406711,85.041,85.0,118.85]
[1646660166018,1.60406711,85.041,85.001,124.6]
[1646660166218,1.60406711,85.046,85.002,0.25]
[1646660166417,1.60406711,85.047,85.002,0.25]
[1646660166619,1.60406711,85.049,85.002,0.79626893]
[1646660166821,1.60406711,85.053,85.003,0.54626893]
[1646660167019,1.60406711,85.062,85.003,0.54626893]
[1646660167219,100.0,85.044,85.005,118.6]
[1646660167420,100.0,85.044,85.011,118.6]
[1646660167622,100.0,85.044,85.013,118.6]
[1646660167826,100.0,85.044,85.006,0.54626893]
[1646660167827,100.0,85.044,85.021,118.6]
[1646660168021,100.0,85.044,85.023,118.6]
[1646660168222,100.0,85.044,85.024,12.13]
[1646660168723,100.0,85.044,85.025,118.6]
[1646660168923,100.0,85.044,85.027,118.6]
[1646660169121,100.0,85.044,85.025,0.54626893]
[1646660169122,100.0,85.044,85.031,118.6]
[1646660169323,100.0,85.044,85.033,118.6]
[1646660169522,100.0,85.044,85.035,118.6]
[1646660169721,1.60406711,85.073,85.037,118.6]
[1646660169923,1.60406711,85.078,85.041,118.6]
[1646660170126,1.60406711,85.085,85.043,118.6]
[1646660170324,1.60406711,85.091,85.045,118.6]
[1646660170524,1.60406711,85.092,85.051,118.6]
[1646660170723,1.60406711,85.092,85.053,118.6]
[1646660171023,1.60406711,85.095,85.055,118.6]
[1646660171226,1.60406711,85.093,85.057,118.6]
[1646660171424,1.60406711,85.094,85.061,118.6]
[1646660171626,1.60406711,85.105,85.064,0.28143025]
[1646660171823,1.60406711,85.117,85.066,0.28143025]
[1646660172025,6.41335544,85.158,85.081,118.6]
[1646660172026,1.60406711,85.122,85.081,118.6]
[1646660172222,1.60406711,85.126,85.082,6.25]
[1646660172422,1.60406711,85.123,85.082,12.125]
[1646660172622,4.84185379,85.17,85.082,11.875]
[1646660172623,1.60406711,85.122,85.082,11.875]
[1646660172823,1.60406711,85.116,85.082,11.875]
[1646660173023,1.60406711,85.115,85.082,11.875]
[1646660173423,1.60406711,85.114,85.082,6.0]
[1646660173624,1.60406711,85.121,85.06,14.13]
[1646660173928,1.60406711,85.126,85.061,6.54626893]
[1646660174323,1.60406711,85.146,85.066,118.6]
[1646660174524,1.60406711,85.151,85.081,118.6]
[1646660174724,0.60406711,85.151,85.082,6.53143025]
[1646660174924,0.60406711,85.151,85.083,124.473]
[1646660175125,0.60406711,85.151,85.085,118.6]
[1646660175329,3.20292809,85.174,85.086,12.123]
[1646660175527,3.20292809,85.171,85.087,118.6]
[1646660175728,6.0,85.17,85.088,12.123]
[1646660175928,42.80717273,85.173,85.088,12.123]
[1646660175929,6.0,85.171,85.088,12.123]
[1646660176130,6.41078068,85.17,85.088,12.123]
[1646660176329,6.0,85.169,85.089,118.6]
[1646660176531,6.41078068,85.168,85.091,118.6]
[1646660176728,6.0,85.167,85.093,118.6]
[1646660177028,6.0,85.167,85.095,118.6]
[1646660177229,0.25,85.166,85.096,6.25]
[1646660177530,6.0,85.172,85.083,0.03]
[1646660177531,36.08997535,85.159,85.083,0.03]
[1646660177730,6.25,85.158,85.083,0.03]
[1646660177931,3.20292809,85.155,85.083,0.03]
[1646660178129,0.1615649,85.15,85.051,5.873]
[1646660178331,4.71574055,85.142,85.051,5.873]
[1646660178531,36.61402792,85.144,85.051,5.873]
[1646660178532,17.6439,85.12,85.051,5.873]
[1646660178734,35.79758251,85.118,85.051,5.873]
[1646660178930,6.25,85.117,85.051,5.873]
[1646660179135,50.79922809,85.143,85.031,118.6]
[1646660179333,0.25,85.142,85.041,118.6]
[1646660179533,47.5963,85.143,85.052,0.54626893]
[1646660179731,47.5963,85.143,85.061,118.6]
[1646660179934,47.5963,85.143,85.062,6.0]
[1646660180133,47.18840663,85.142,85.062,6.0]
[1646660180434,47.18840663,85.142,85.063,0.25]
[1646660180632,17.6337,85.14,85.063,0.25]
[1646660180832,17.6337,85.14,85.052,0.54626893]
[1646660181034,17.6337,85.14,85.052,6.42126893]
[1646660181233,47.18840663,85.142,85.052,6.42126893]
[1646660181234,6.25,85.139,85.053,6.25]
[1646660181435,0.25,85.139,85.053,6.25]
[1646660181639,0.25,85.14,85.053,6.25]
[1646660181837,37.47977894,85.129,85.051,5.875]
[1646660182034,118.6,85.127,85.051,5.875]
[1646660182235,118.6,85.125,85.051,5.875]
[1646660182436,118.6,85.123,85.02,14.13]
[1646660182633,6.25,85.122,85.01,14.13]
[1646660182834,6.25,85.121,85.013,0.54626893]
[1646660183035,6.25,85.121,85.014,5.877]
[1646660183536,0.25,85.121,85.014,5.877]
[1646660183835,17.6378,85.12,85.02,17.6379]
[1646660184037,6.25,85.119,85.021,5.877]
[1646660184237,0.25,85.118,85.021,124.477]
[1646660184436,0.25,85.121,85.021,125.02326893]
[1646660184635,0.25,85.121,85.022,0.79626893]
[1646660184837,0.25,85.121,85.023,124.477]
[1646660185037,17.6395,85.11,85.025,118.6]
[1646660185237,6.0,85.124,85.023,6.42326893]
[1646660185238,44.70559512,85.109,85.027,118.6]
[1646660185436,44.70559512,85.109,85.041,118.6]
[1646660185636,44.70559512,85.109,85.042,6.25]
[1646660186236,44.70559512,85.109,85.043,6.0]
[1646660186436,44.70559512,85.109,85.044,0.25]
[1646660186739,44.70559512,85.109,85.042,0.25]
[1646660186936,44.70559512,85.109,85.043,5.877]
[1646660187136,17.6414,85.1,85.044,6.25]
[1646660187338,0.25,85.099,85.045,5.877]
[1646660187540,0.25,85.099,85.046,6.25]
[1646660187739,0.25,85.099,85.047,5.877]
[1646660188239,17.6435,85.09,85.047,5.877]
[1646660188540,43.92649969,85.089,84.99,14.13]
[1646660188737,6.25,85.088,84.981,23.1832]
[1646660188938,6.25,85.088,85.002,5.879]
[1646660189141,6.25,85.088,85.002,124.479]
[1646660189340,0.25,85.088,85.004,118.6]
[1646660189538,17.6453,85.08,85.005,11.878]
[1646660189737,0.25,85.079,85.006,6.0]
[1646660190340,0.25,85.079,84.981,141.7832]
[1646660190740,17.6487,85.07,84.982,6.0]
[1646660190941,36.50300593,85.068,84.982,6.0]
[1646660191141,6.25,85.067,84.982,6.0]
[1646660191544,6.25,85.067,84.983,5.88]
[1646660191743,17.6539,85.05,84.983,5.88]
[1646660191943,45.90314639,85.048,84.983,5.88]
[1646660192140,6.25,85.047,84.983,5.88]
[1646660192340,6.25,85.047,84.952,124.481]
[1646660192540,6.25,85.047,84.964,118.6]
[1646660192740,6.25,85.047,84.966,118.6]
[1646660192940,6.25,85.047,84.968,118.6]
[1646660193240,35.99953274,85.029,84.969,6.25]
[1646660193439,0.25,85.028,84.969,6.25]
[1646660193646,0.25,85.028,84.97,5.882]
[1646660193842,0.25,85.028,84.971,6.0]
[1646660194246,0.25,85.028,84.972,0.25]
[1646660194447,6.0,85.047,84.972,0.25]
[1646660194647,6.0,85.054,84.972,0.79626893]
[1646660194845,6.0,85.064,84.972,0.79626893]
[1646660195143,6.0,85.064,84.973,6.42726893]
[1646660195343,41.02070137,85.063,84.974,6.25]